Cogmind - Beta 17.1 @@@ ROGUE MODE // 2026.09.07 @ 13:26:49 Player: Petvaria Result: Destroyed by H-88 Terminator with KE Penetrator Performance ------------- Evolutions (9) 4500 Regions Visited (13) 2600 Robots Destroyed (71) 355 Value Destroyed (983) 983 Prototype IDs (28) 560 Alien Tech Used (0) 0 Bonus (800) 800 TOTAL SCORE: 9798 Bonus ------- Entered DSFs 500 Aligned with FarCom 300 Cogmind --------- Core Integrity 0/1600 Matter 280/300 Energy 69/100 System Corruption 10% Temperature Cool (0) Movement Core (50) Location -1/Access Parts ------- > --- POWER (1) -------- (None) > --- PROPULSION (2) --- (None) > --- UTILITY (20) ----- Enhanced Optical Array Advanced Signal Interpreter Experimental Signal Interpreter Advanced Melee Analysis Suite Advanced Hacking Suite > --- WEAPON (2) ------- (None) > --- INVENTORY (5) ---- Micro Antimatter Reactor Microactuators Layered Medium Armor Plating Enhanced Nova Cannon Peak State ------------ > --- POWER ------------ Light Ion Engine > --- PROPULSION ------- (None) > --- UTILITY ---------- Advanced Weight Redist. System Machine Analyzer Machine Analyzer Enhanced Optical Array Advanced Signal Interpreter Experimental Signal Interpreter Improved Terrain Scan Processor Transport Network Coupler Advanced Targeting Computer Melee Analysis Suite Advanced Melee Analysis Suite Advanced Melee Analysis Suite Advanced Melee Analysis Suite Advanced Reaction Control System Hacking Suite Hacking Suite Hacking Suite Advanced Hacking Suite > --- WEAPON ----------- Enhanced Nova Cannon Heavy Pick > --- INVENTORY -------- Light Ion Engine Micro Antimatter Reactor Microactuators Layered Medium Armor Plating Makeshift Sword [Rating: 91] Favorites ----------- Power Light Ion Engine Engine Light Ion Engine Power Core Micro Fission Core Reactor Micro Antimatter Reactor Propulsion None Utility Hacking Suite Device Weight Redist. System Processor Advanced Targeting Computer Hackware Hacking Suite Protection Light Armor Plating Weapon Makeshift Sword Energy Cannon Enhanced Nova Cannon Ballistic Gun Gauss Rifle Ballistic Cannon Enhanced Hardcell Cannon Launcher Grenade Launcher Slashing Weapon Makeshift Sword Piercing Weapon Heavy Pick Build | -11 -10 -10 -10 -9 -8 -7 -6 -5 -4 -4 -3 -2 -1 ------- Run | Yrd Mat Min Exi Min Mat Fac Fac Fac Fac DSF Res Res Acc Slots Evolved 18 | . . . . . 4 2 2 2 2 . 2 2 2 Power . | . . . . . . . . . . . . . . Propulsion . | . . . . . . . . . . . . . . Utility 18 | . . . . . 4 2 2 2 2 . 2 2 2 Weapon . | . . . . . . . . . . . . . . Parts Attached 64 | 3 3 . . . 15 9 7 6 4 . 4 7 6 Power 9 | . 1 . . . 3 . . . 1 . 1 1 2 Engine 7 | . 1 . . . 3 . . . . . 1 1 1 Core 1 | . . . . . . . . . 1 . . . . Reactor 1 | . . . . . . . . . . . . . 1 Propulsion . | . . . . . . . . . . . . . . Treads . | . . . . . . . . . . . . . . Leg . | . . . . . . . . . . . . . . Wheel . | . . . . . . . . . . . . . . Hover . | . . . . . . . . . . . . . . Flight . | . . . . . . . . . . . . . . Utility 42 | 1 1 . . . 7 8 7 5 3 . 3 5 2 Device 9 | 1 1 . . . 1 . . . 3 . 1 2 . Storage . | . . . . . . . . . . . . . . Processor 22 | . . . . . 4 6 4 2 . . 2 3 1 Hackware 5 | . . . . . . . 2 3 . . . . . Protection 6 | . . . . . 2 2 1 . . . . . 1 Artifact . | . . . . . . . . . . . . . . Weapon 13 | 2 1 . . . 5 1 . 1 . . . 1 2 Energy Gun . | . . . . . . . . . . . . . . Energy Cannon 2 | . . . . . . . . 1 . . . . 1 Ballistic Gun 6 | 2 . . . . 3 1 . . . . . . . Ballistic Cannon 1 | . . . . . . . . . . . . . 1 Launcher 2 | . 1 . . . 1 . . . . . . . . Special Weapon . | . . . . . . . . . . . . . . Impact Weapon . | . . . . . . . . . . . . . . Slashing Weapon 1 | . . . . . 1 . . . . . . . . Piercing Weapon 1 | . . . . . . . . . . . . 1 . Special Melee Weapon . | . . . . . . . . . . . . . . Unidentified Prototypes 5 | . . . . . 1 . 1 1 . . 1 1 . Parts Lost 30 | . . . . . 5 2 . . . 1 4 . 18 Power 6 | . . . . . 2 . . . . 1 1 . 2 Propulsion . | . . . . . . . . . . . . . . Utility 19 | . . . . . 1 1 . . . . 3 . 14 Weapon 5 | . . . . . 2 1 . . . . . . 2 Highest Loss Streak 17 | . . . . . 3 1 . . . 1 3 . 17 To Critical Strikes . | . . . . . . . . . . . . . . Average Backups 4 | 2 4 5 5 4 4 5 4 4 5 5 4 4 4 Power . | . . . . . . 1 . . . . . . 1 Propulsion . | . . . . . . . . . . . . . . Utility 3 | . 1 2 2 2 2 3 4 4 5 5 4 3 2 Weapon . | 1 2 3 2 2 1 . . . . . . . 1 Tool/Special . | . . . . . . . . . . . . . . Unused Backups 9 | . 1 . 2 . . . 1 1 . . 1 1 2 Power 3 | . 1 . . . . . 1 . . . . 1 . Propulsion . | . . . . . . . . . . . . . . Utility 5 | . . . 1 . . . . 1 . . 1 . 2 Weapon 1 | . . . 1 . . . . . . . . . . Tool/Special . | . . . . . . . . . . . . . . Average Slot Usage (%) 68 | . 28 28 28 28 51 82 82 85 80 82 75 75 78 Engine 3 | . . . . . 4 7 6 5 3 . 1 3 3 Device 10 | . 14 14 14 14 13 14 6 5 10 15 14 6 6 Processor 31 | . . . . . 16 44 46 41 31 31 31 37 45 Hackware 10 | . . . . . . . 8 20 26 26 23 21 16 Ballistic Gun 5 | . 14 14 14 14 8 7 6 5 1 . . . . Slashing Weapon 4 | . . . . . 6 6 6 5 5 5 4 4 3 Peak Build Rating 91 | 3 5 2 3 5 27 36 41 52 64 64 73 86 91 Average Rating 40 | 1 2 2 2 4 17 33 37 48 55 62 63 69 81 On Entrance 30 | . 2 2 2 3 5 27 35 39 48 64 58 55 86 Avg Prop Armor Cover (%) . | . . . . . . . . . . . . . . Naked Turns 3 | . . . . . 3 . . . . . . . . Heaviest Build 29 | 4 3 3 3 6 9 29 9 9 12 12 10 11 22 Greatest Support 12 | 3 3 3 3 3 9 9 9 9 12 12 12 12 12 Greatest Overweight (x) 3 | 1 . . . 1 2 3 . . . 3 2 3 3 Average Overweight (x) . | . . . . . . . . . . . . . . Largest Inventory Capacity 5 | 5 5 5 5 5 5 5 5 5 5 5 5 5 5 Average Capacity 5 | 5 5 5 5 5 5 5 5 5 5 5 5 5 5 Most Carried 5 | 4 5 5 5 5 5 5 5 5 5 5 5 5 5 Average Carried 4 | 2 4 5 4 4 4 4 4 4 5 5 4 4 4 Final Capacity 5 | 5 5 5 5 5 5 5 5 5 5 5 5 5 5 Final Carried 5 | 4 5 5 5 5 5 5 5 5 5 5 5 5 4 Class Distribution -------------------- 45% | Hacker-Scout 32% | Scout 14% | Mutant 3% | Hacker-Assassin Dominant Class ---------------- Mutant | -10/Materials Mutant | -10/Mines Mutant | -10/Exiles Scout | -9/Mines Scout | -8/Materials Scout | -7/Factory Hacker-Scout | -6/Factory Hacker-Scout | -5/Factory Hacker-Scout | -4/Factory Hacker-Assassin | -4/DSF Hacker-Scout | -3/Research Hacker-Scout | -2/Research Hacker-Scout | -1/Access Resources | -11 -10 -10 -10 -9 -8 -7 -6 -5 -4 -4 -3 -2 -1 ----------- Run | Yrd Mat Min Exi Min Mat Fac Fac Fac Fac DSF Res Res Acc Matter Collected 1333 | 314 7 40 . 19 449 131 95 54 50 4 37 44 89 Remotely . | . . . . . . . . . . . . . . Salvage Created 2760 | 125 9 . . . 825 257 543 258 286 . 173 175 109 Parts 149 | 13 1 . . 2 56 11 18 13 8 . 7 15 5 Haulers Intercepted 4 | . . . . . 1 . 1 . 1 . . . 1 Recyclers Shooed 3 | . . . . . . . . 1 . . 1 1 . Parts Field Recycled . | . . . . . . . . . . . . . . Retrieved Matter . | . . . . . . . . . . . . . . Parts Self-Destructed . | . . . . . . . . . . . . . . Prevented . | . . . . . . . . . . . . . . Parts Restored . | . . . . . . . . . . . . . . Kills | -11 -10 -10 -10 -9 -8 -7 -6 -5 -4 -4 -3 -2 -1 ------- Run | Yrd Mat Min Exi Min Mat Fac Fac Fac Fac DSF Res Res Acc Combat Hostiles Destroyed 24 | . 3 . . 2 15 4 . . . . . . . Melee 3 | . . . . . 3 . . . . . . . . Guns 7 | . 1 . . . 5 1 . . . . . . . AOE 14 | . 2 . . 2 7 3 . . . . . . . Classes Destroyed 9 | 2 1 . . . 6 . . . . . . . . Worker 12 | . . . . . 5 1 1 1 . . 1 2 1 Tunneler 9 | 4 . . . . . . . 1 1 . 2 1 . Hauler 4 | . . . . . 1 . 1 . 1 . . . 1 Recycler 12 | 1 . . . . 3 1 3 1 1 . 1 1 . Mechanic 3 | . . . . . 1 1 . 1 . . . . . Operator 4 | . . . . . 2 1 1 . . . . . . Watcher 3 | . . . . . 2 . . 1 . . . . . Swarmer 19 | . 3 . . 2 10 4 . . . . . . . Sentry 5 | . . . . . 5 . . . . . . . . Best Kill Streak 7 | 5 3 . . 2 6 7 2 2 2 . 2 2 1 Combat Bots Only 4 | . 3 . . 2 4 4 . . . . . . . Max Kills in Single Turn 4 | 1 1 . . 2 4 2 1 1 1 . 1 1 1 Gunslinging . | . . . . . . . . . . . . . . Exploded 3 | . 1 . . 2 3 2 . . . . . . . Melee 1 | . . . . . 1 . . . . . . . . Uniques/NPCs Destroyed . | . . . . . . . . . . . . . . Combat | -11 -10 -10 -10 -9 -8 -7 -6 -5 -4 -4 -3 -2 -1 -------- Run | Yrd Mat Min Exi Min Mat Fac Fac Fac Fac DSF Res Res Acc Hostile Shots Fired 324 | . 9 . . 14 86 10 . . . 5 16 . 184 Missed 131 | . 4 . . 4 28 5 . . . 1 5 . 84 Hits 193 | . 5 . . 10 58 5 . . . 4 11 . 100 Projectile 193 | . 5 . . 10 58 5 . . . 4 11 . 100 Critical Strikes 10 | . . . . . 1 . . . . . 2 . 7 Damage Taken 3696 | . 57 . . 70 784 155 . . . 105 282 . 2243 Core 2005 | . 27 . . 32 149 52 . . . 24 105 . 1616 Absorbed by Shields . | . . . . . . . . . . . . . . Regen/Repaired (Parts) 65 | . . . . . 65 . . . . . . . . Core Remaining (%) 92 | 100 . . . 76 72 92 100 100 . 97 91 100 . Volleys Fired 63 | 14 5 . . 3 28 7 . 1 . . . . 5 Largest 2 | 2 2 . . 1 2 1 . 1 . . . . 1 Hottest 120 | 40 40 . . 30 43 36 . 28 . . . . 120 Shots Fired 102 | 28 8 . . 3 50 7 . 1 . . . . 5 Gun 86 | 28 6 . . . 46 5 . 1 . . . . . Cannon 5 | . . . . . . . . . . . . . 5 Launcher 11 | . 2 . . 3 4 2 . . . . . . . Special . | . . . . . . . . . . . . . . Kinetic 88 | 28 6 . . . 46 5 . 1 . . . . 2 Thermal 3 | . . . . . . . . . . . . . 3 Explosive 11 | . 2 . . 3 4 2 . . . . . . . Electromagnetic . | . . . . . . . . . . . . . . Robot Hit Streak 15 | 6 9 . . . 15 8 . . . . . . . Robot Miss Streak 3 | 2 . . . . 3 1 . . . . . . . Penetration Max . | . . . . . . . . . . . . . . Secondary Targets 2 | . . . . . 2 . . . . . . . . Max Gunslinging Chain 1 | . . . . . 1 . . . . . . . . Shots Hit Robots 128 | 17 3 . . . 59 6 8 10 3 . 7 5 10 Core Hits 71 | 6 4 . . 4 30 8 4 4 3 . 3 3 2 Critical Kills . | . . . . . . . . . . . . . . Critical Parts Destroyed . | . . . . . . . . . . . . . . Critical Strikes 2 | . . . . . . . 1 . . . . . 1 Sever 2 | . . . . . . . 1 . . . . . 1 Melee Attacks 254 | . . . . . 67 14 54 26 11 5 16 15 46 Impact . | . . . . . . . . . . . . . . Slashing 245 | . . . . . 67 14 54 26 11 5 16 15 37 Piercing 9 | . . . . . . . . . . . . . 9 Sneak Attacks 39 | . . . . . 10 3 5 6 3 . 5 5 2 Combat Hostiles . | . . . . . . . . . . . . . . Follow-up Attacks 1 | . . . . . . . . . . . . . 1 Damage Inflicted 6189 | 206 147 . . 116 2372 528 510 639 233 . 484 393 561 Guns 696 | 206 38 . . . 394 58 . . . . . . . Cannons . | . . . . . . . . . . . . . . Explosions 1063 | . 109 . . 116 622 216 . . . . . . . Melee 4409 | . . . . . 1356 254 510 639 233 . 484 393 540 Ramming 21 | . . . . . . . . . . . . . 21 Kinetic 696 | 206 38 . . . 394 58 . . . . . . . Thermal . | . . . . . . . . . . . . . . Explosive 1063 | . 109 . . 116 622 216 . . . . . . . Electromagnetic . | . . . . . . . . . . . . . . Impact . | . . . . . . . . . . . . . . Slashing 4164 | . . . . . 1356 254 510 639 233 . 484 393 295 Piercing 245 | . . . . . . . . . . . . . 245 Highest Corruption 10 | . . . . . . . . . . 1 1 . 10 Average Corruption 5 | . . . . . . . . . . 1 1 . 6 Corruption Purged . | . . . . . . . . . . . . . . Corruption Blocked 1 | . . . . . . 1 . . . . . . . Effects 3 | . . . . . . . . . . . . . 3 Matter Fused 1 | . . . . . . . . . . . . . 1 Data Loss (minor) 2 | . . . . . . . . . . . . . 2 Overload Shots . | . . . . . . . . . . . . . . Overflow Damage 747 | . . . . . 177 110 84 109 . . 151 94 22 Projectiles . | . . . . . . . . . . . . . . Explosions 36 | . . . . . 28 8 . . . . . . . Melee 711 | . . . . . 149 102 84 109 . . 151 94 22 Knockbacks 1 | . . . . . . . . . . . . . 1 Impact 1 | . . . . . . . . . . . . . 1 Kinetic . | . . . . . . . . . . . . . . Secondary . | . . . . . . . . . . . . . . Self-Inflicted Damage 58 | . 21 . . . 27 . . . . . . . 10 Shots 2 | . 1 . . . 1 . . . . . . . . Rammed 3 | . . . . . . . . . . . . . 3 Targets Rammed 3 | . . . . . . . . . . . . . 3 Kicked . | . . . . . . . . . . . . . . Crushed . | . . . . . . . . . . . . . . Highest Temperature 26 | . . . . . 20 . . . . . . . 26 Average Temperature 8 | . . . . . 4 . . . . . . . 17 Received Heat Transfer 396 | . . . . . 234 . . . . . 36 . 126 Siege Activations . | . . . . . . . . . . . . . . Martial Activations . | . . . . . . . . . . . . . . Shielding Activations . | . . . . . . . . . . . . . . Robots Disrupted . | . . . . . . . . . . . . . . Combat Hostiles . | . . . . . . . . . . . . . . Robots Corrupted . | . . . . . . . . . . . . . . Combat Hostiles . | . . . . . . . . . . . . . . Parts Fried . | . . . . . . . . . . . . . . Impact Corruptions . | . . . . . . . . . . . . . . Robots Melted . | . . . . . . . . . . . . . . Combat Hostiles . | . . . . . . . . . . . . . . Parts Melted . | . . . . . . . . . . . . . . Heat Transferred . | . . . . . . . . . . . . . . Parts Sabotaged . | . . . . . . . . . . . . . . Parts Stolen . | . . . . . . . . . . . . . . Parts Stripped . | . . . . . . . . . . . . . . Power Chain Reactions . | . . . . . . . . . . . . . . Alert | -11 -10 -10 -10 -9 -8 -7 -6 -5 -4 -4 -3 -2 -1 ------- Run | Yrd Mat Min Exi Min Mat Fac Fac Fac Fac DSF Res Res Acc Maximum Alert Level 1 | . . . . . 1 . . . . . . . . Low Security (%) 92 | 100 100 100 . 100 66 100 100 100 100 100 100 100 100 Level 1 7 | . . . . . 33 . . . . . . . . Level 2 . | . . . . . . . . . . . . . . Level 3 . | . . . . . . . . . . . . . . Level 4 . | . . . . . . . . . . . . . . Level 5 . | . . . . . . . . . . . . . . High Security . | . . . . . . . . . . . . . . Max Security . | . . . . . . . . . . . . . . Peak Influence 257 | 15 80 31 . 57 257 148 48 27 7 15 25 15 88 Initial 86 | . 3 31 . . 10 86 48 . . . 8 . . Average 48 | 5 36 30 . 25 129 88 16 4 1 3 3 3 33 Influence Increases 1754 | 25 116 . . 63 582 203 147 92 33 25 47 62 359 Destroy 0b10 Robot/C 480 | . 60 . . 40 300 80 . . . . . . . Destroy 0b10 Robot/NC 235 | 25 . . . . 70 20 30 25 15 . 20 20 10 Destroy Leader 124 | . 10 . . 10 86 10 2 2 2 . . . 2 Successful Hack 125 | . 6 . . . 14 19 42 18 . . . 12 14 Disable Machine 105 | . . . . . 45 . 15 . . . 15 . 30 Destroy Structure 340 | . 10 . . 13 52 14 43 32 16 10 12 30 108 Partial Spotted 45 | . . . . . . 15 . . . . . . 30 Lose Combat Pursuer 300 | . 30 . . . 15 45 15 15 . 15 . . 165 Influence Decreases 1704 | 20 41 59 21 36 417 296 245 93 33 10 62 62 309 Entered New Map 254 | . 2 49 21 . 17 106 51 1 . . 7 . . Time Decay 1234 | 20 39 10 . 36 350 170 163 92 33 . 53 62 206 Lost Part 167 | . . . . . 50 20 . . . 2 2 . 93 Lost Ally 18 | . . . . . . . . . . 8 . . 10 Purge Threat 31 | . . . . . . . 31 . . . . . . Squads Dispatched 13 | . 1 . . . 1 4 1 2 . . . . 4 Investigation 2 | . 1 . . . . 1 . . . . . . . Extermination 6 | . . . . . . 2 1 1 . . . . 2 Reinforcement 5 | . . . . . 1 1 . 1 . . . . 2 Assault . | . . . . . . . . . . . . . . Garrison . | . . . . . . . . . . . . . . Intercept . | . . . . . . . . . . . . . . Searches Triggered . | . . . . . . . . . . . . . . Construction Impeded . | . . . . . . . . . . . . . . Haulers Reinforced 1 | . . . . . . . . 1 . . . . . Active Scanning Responses . | . . . . . . . . . . . . . . Cargo Convoy Interrupts . | . . . . . . . . . . . . . . Stealth | -11 -10 -10 -10 -9 -8 -7 -6 -5 -4 -4 -3 -2 -1 --------- Run | Yrd Mat Min Exi Min Mat Fac Fac Fac Fac DSF Res Res Acc Distress Signals 8 | . 1 . . . 1 2 . 1 . . . . 3 Communications Jammed . | . . . . . . . . . . . . . . Distress Signals . | . . . . . . . . . . . . . . Times Spotted 88 | . 6 . . 3 27 3 4 4 . 2 4 . 35 Peak Tracking Total 19 | . 4 . . 3 6 5 1 4 . 1 4 . 19 Tactical Retreats 11 | . 1 . . . 1 1 1 1 . 1 . . 5 Traps | -11 -10 -10 -10 -9 -8 -7 -6 -5 -4 -4 -3 -2 -1 ------- Run | Yrd Mat Min Exi Min Mat Fac Fac Fac Fac DSF Res Res Acc Traps Triggered 4 | . 1 . . . . 2 . . . . . . 1 Indirectly . | . . . . . . . . . . . . . . Trap Hack Attempts . | . . . . . . . . . . . . . . Triggered . | . . . . . . . . . . . . . . Disarmed . | . . . . . . . . . . . . . . Reprogrammed . | . . . . . . . . . . . . . . Reused . | . . . . . . . . . . . . . . Traps Extracted . | . . . . . . . . . . . . . . Installed . | . . . . . . . . . . . . . . Triggered . | . . . . . . . . . . . . . . Machines | -11 -10 -10 -10 -9 -8 -7 -6 -5 -4 -4 -3 -2 -1 ---------- Run | Yrd Mat Min Exi Min Mat Fac Fac Fac Fac DSF Res Res Acc Machines Disabled 7 | . . . . . 3 . 1 . . . 1 . 2 Max in Single Turn 1 | . . . . . 1 . 1 . . . 1 . 1 Energy Cycler 1 | . . . . . . . . . . . . . 1 Machines Repaired . | . . . . . . . . . . . . . . Machines Dismantled . | . . . . . . . . . . . . . . Machines Sabotaged . | . . . . . . . . . . . . . . Overloaded Fab Kills . | . . . . . . . . . . . . . . Hacking | -11 -10 -10 -10 -9 -8 -7 -6 -5 -4 -4 -3 -2 -1 --------- Run | Yrd Mat Min Exi Min Mat Fac Fac Fac Fac DSF Res Res Acc Machines Accessed 33 | . 2 . 2 1 5 5 8 3 1 . 1 2 3 Terminals 23 | . 2 . . . 2 5 6 2 1 . 1 1 3 Fabricators 2 | . . . . . . . 1 1 . . . . . Repair Stations 2 | . . . . . 2 . . . . . . . . Recycling Units . | . . . . . . . . . . . . . . Scanalyzers 2 | . . . . . . . 1 . . . . 1 . Garrison Access 1 | . . . . . 1 . . . . . . . . Total Hacks 73 | . 8 . 2 1 13 13 15 7 1 . 2 5 6 Successful 40 | . 2 . 2 1 7 3 10 6 1 . 1 5 2 Failed 33 | . 6 . . . 6 10 5 1 . . 1 . 4 Catastrophic 3 | . 1 . . . . . . . . . . . 2 Database Lockouts . | . . . . . . . . . . . . . . Manual 39 | . 3 . 1 . 5 9 9 4 . . 2 2 4 Terminals 56 | . 8 . . . 7 13 11 5 1 . 2 3 6 Fabricators 4 | . . . . . . . 2 2 . . . . . Repair Stations 5 | . . . . . 5 . . . . . . . . Recycling Units . | . . . . . . . . . . . . . . Scanalyzers 4 | . . . . . . . 2 . . . . 2 . Garrison Access 1 | . . . . . 1 . . . . . . . . Terminal Hacks 21 | . 2 . 2 1 2 2 3 3 1 . 1 3 1 Record 3 | . 2 . 1 . . . . . . . . . . Open Door 1 | . . . . 1 . . . . . . . . . Open DSF 2 | . . . . . . 1 . . 1 . . . . Level Access Points 5 | . . . . . . . 1 1 . . 1 1 1 Branch Access Points 1 | . . . . . . 1 . . . . . . . Terminal Index 1 | . . . . . . . . . . . . 1 . Fabricator Index 1 | . . . . . . . . 1 . . . . . Unreport Threat 1 | . . . . . . . 1 . . . . . . Transport Status 1 | . . . . . 1 . . . . . . . . Hauler Manifests 2 | . . . . . 1 . 1 . . . . . . Registered Components 1 | . . . . . . . . . . . . 1 . Registered Prototypes 1 | . . . . . . . . 1 . . . . . Proto ID Catalog 1 | . . . 1 . . . . . . . . . . Fabricator Hacks 2 | . . . . . . . 1 1 . . . . . Network Status 1 | . . . . . . . 1 . . . . . . Build 1 | . . . . . . . . 1 . . . . . Repair Station Hacks 4 | . . . . . 4 . . . . . . . . Scan Component 2 | . . . . . 2 . . . . . . . . Repair 2 | . . . . . 2 . . . . . . . . Recycling Unit Hacks . | . . . . . . . . . . . . . . Scanalyzer 4 | . . . . . . . 2 . . . . 2 . Retrieve Study 4 | . . . . . . . 2 . . . . 2 . Garrison Access Hacks . | . . . . . . . . . . . . . . Unauthorized Hacks 9 | . . . . . 1 1 4 2 . . . . 1 Terminals 7 | . . . . . 1 1 3 1 . . . . 1 Assimilate 4 | . . . . . . 1 1 1 . . . . 1 Botnet 1 | . . . . . . . 1 . . . . . . Operators 2 | . . . . . 1 . 1 . . . . . . Fabricators 2 | . . . . . . . 1 1 . . . . . Prioritize 1 | . . . . . . . . 1 . . . . . Haulers 1 | . . . . . . . 1 . . . . . . Repair Stations . | . . . . . . . . . . . . . . Recycling Units . | . . . . . . . . . . . . . . Scanalyzers . | . . . . . . . . . . . . . . Garrison Access . | . . . . . . . . . . . . . . Data Cores Recovered 1 | . . . . . . . 1 . . . . . . Used . | . . . . . . . . . . . . . . Hacking Detections 25 | . 2 . . . 4 4 7 3 . . . 2 3 Full Trace Events 1 | . . . . . . 1 . . . . . . . Feedback Events . | . . . . . . . . . . . . . . Feedback Blocked . | . . . . . . . . . . . . . . Robot Schematics Acquired . | . . . . . . . . . . . . . . Robots Built . | . . . . . . . . . . . . . . Authchips . | . . . . . . . . . . . . . . Time . | . . . . . . . . . . . . . . Total Robot Build Rating . | . . . . . . . . . . . . . . Part Schematics Acquired . | . . . . . . . . . . . . . . Parts Built 2 | . . . . . . . . 2 . . . . . Authchips . | . . . . . . . . . . . . . . Time 64 | . . . . . . . . 64 . . . . . Total Part Build Rating 16 | . . . . . . . . 16 . . . . . Part Studies Acquired 4 | . . . . . . . 2 . . . . 2 . Parts Repaired 2 | . . . . . 2 . . . . . . . . Time 64 | . . . . . 64 . . . . . . . . Parts Recycled . | . . . . . . . . . . . . . . Recycled Matter . | . . . . . . . . . . . . . . Retrieved Matter . | . . . . . . . . . . . . . . Retrieved Components . | . . . . . . . . . . . . . . Parts Scanalyzed . | . . . . . . . . . . . . . . Part Schematics Acquired . | . . . . . . . . . . . . . . Parts Damaged . | . . . . . . . . . . . . . . Bothacking | -11 -10 -10 -10 -9 -8 -7 -6 -5 -4 -4 -3 -2 -1 ------------ Run | Yrd Mat Min Exi Min Mat Fac Fac Fac Fac DSF Res Res Acc Used RIF Installer . | . . . . . . . . . . . . . . Robots Hacked . | . . . . . . . . . . . . . . Non-combat . | . . . . . . . . . . . . . . Combat . | . . . . . . . . . . . . . . Robot Hacks Applied . | . . . . . . . . . . . . . . Relay Couplers Released . | . . . . . . . . . . . . . . Fabnet Peak Effective % . | . . . . . . . . . . . . . . Robots Rewired . | . . . . . . . . . . . . . . Allies Hacked . | . . . . . . . . . . . . . . Hacks Repelled . | . . . . . . . . . . . . . . Allies | -11 -10 -10 -10 -9 -8 -7 -6 -5 -4 -4 -3 -2 -1 -------- Run | Yrd Mat Min Exi Min Mat Fac Fac Fac Fac DSF Res Res Acc Total Allies 3 | . . . . . . . 1 1 . . . . 1 Largest Group 2 | . . . . . . . 1 2 2 2 . . 1 Highest-Rated Group 36 | . . . . . . . 10 36 36 36 . . 26 Highest-Rated Ally 26 | . . . . . . . 10 26 26 26 . . 26 Total Orders 4 | . . . . . . . 2 2 . . . . . STAY 2 | . . . . . . . 1 1 . . . . . FOLLOW 2 | . . . . . . . 1 1 . . . . . Ally Attacks . | . . . . . . . . . . . . . . Total Damage . | . . . . . . . . . . . . . . Kills . | . . . . . . . . . . . . . . Allies Corrupted . | . . . . . . . . . . . . . . Allies Melted . | . . . . . . . . . . . . . . Intel | -11 -10 -10 -10 -9 -8 -7 -6 -5 -4 -4 -3 -2 -1 ------- Run | Yrd Mat Min Exi Min Mat Fac Fac Fac Fac DSF Res Res Acc Active Infowar (turns) 3671 | 3 139 21 111 116 780 342 497 352 222 106 266 198 518 Optics 2222 | . . . . . . 63 497 352 222 106 266 198 518 Terrain 1560 | . 1 . . 56 780 313 . . 170 106 134 . . Seismic 334 | 3 139 21 111 60 . . . . . . . . . T.N.C. 2123 | . . . . . . . 465 352 222 106 266 198 514 Machine Analysis 2445 | . . . . . . 315 497 352 222 106 266 198 489 Robot Analysis Total . | . . . . . . . . . . . . . . Derelict Logs Recovered 1 | . . . . 1 . . . . . . . . . Drone Launches . | . . . . . . . . . . . . . . Drone Recoveries . | . . . . . . . . . . . . . . Exploration | -11 -10 -10 -10 -9 -8 -7 -6 -5 -4 -4 -3 -2 -1 ------------- Run | Yrd Mat Min Exi Min Mat Fac Fac Fac Fac DSF Res Res Acc Turns Passed 3818 | 80 139 21 111 117 849 342 497 352 222 106 266 198 518 Spaces Moved 4981 | 47 230 42 213 203 861 502 729 540 359 75 298 279 603 Core 4981 | 47 230 42 213 203 861 502 729 540 359 75 298 279 603 Treads . | . . . . . . . . . . . . . . Legs . | . . . . . . . . . . . . . . Wheels . | . . . . . . . . . . . . . . Hover . | . . . . . . . . . . . . . . Flight . | . . . . . . . . . . . . . . Fastest Speed 50 | 50 50 50 50 50 50 50 50 50 50 50 50 50 50 Average Speed 51 | 60 50 50 50 50 50 50 50 50 50 92 57 52 50 Slowest Speed 200 | 100 50 50 50 100 150 200 50 50 50 200 150 200 200 Overloaded Moves . | . . . . . . . . . . . . . . Propulsion Burnouts . | . . . . . . . . . . . . . . Robots Hopped . | . . . . . . . . . . . . . . Potential Cave-ins 4 | . . . . . . . . . . . . . 4 Cave-ins Triggered . | . . . . . . . . . . . . . . Exploration Rate (%) 31 | 4 44 18 59 57 63 16 24 18 7 89 9 9 24 Regions Visited 13 Branch Regions 3 Pre-discovered Areas 1 | . . . 1 . . . . . . . . . . Known Exits Taken 5 | . . . . . . . 1 1 1 . 1 1 . Unknown Exits Taken 7 | 1 1 1 1 1 1 1 . . . . . . . Scrap Searched 1 | . . 1 . . . . . . . . . . . Spaces Dug 163 | . . . . . 29 10 44 16 8 5 6 10 35 Terrain Destroyed 224 | . 12 . . 14 53 14 44 16 8 5 6 10 42 Melee 162 | . . . . . 29 10 44 16 8 5 6 10 34 Projectile 1 | . . . . . . . . . . . . . 1 AOE 61 | . 12 . . 14 24 4 . . . . . . 7 Terrain Rammed . | . . . . . . . . . . . . . . Walls Destroyed . | . . . . . . . . . . . . . . Machines Disabled . | . . . . . . . . . . . . . . Actions | -11 -10 -10 -10 -9 -8 -7 -6 -5 -4 -4 -3 -2 -1 --------- Run | Yrd Mat Min Exi Min Mat Fac Fac Fac Fac DSF Res Res Acc Total 5863 | 70 246 41 218 215 1162 571 806 594 389 106 373 313 759 Wait 370 | . 1 . . 3 161 28 7 11 13 12 50 7 77 Move 4968 | 46 229 41 212 202 860 501 728 539 358 74 297 278 603 Hop . | . . . . . . . . . . . . . . Pick Up 46 | 6 3 . 3 1 13 3 5 3 . . 2 3 4 Fast Attach 34 | . . . . . 4 6 4 6 3 . 3 6 2 Attach 38 | 3 3 . . 3 15 2 1 1 . . . 2 8 Detach 16 | 1 2 . . 2 6 . . . . . . . 5 Swap 20 | . 1 . . . 5 4 2 . 1 . 3 . 4 Drop 37 | . 2 . 3 1 3 6 5 7 3 . 2 2 3 Fire 63 | 14 5 . . 3 28 7 . 1 . . . . 5 Melee 253 | . . . . . 67 14 54 26 11 5 16 15 45 Ram 3 | . . . . . . . . . . . . . 3 Kick . | . . . . . . . . . . . . . . Crush . | . . . . . . . . . . . . . . Escape Stasis 15 | . . . . . . . . . . 15 . . . Rewire . | . . . . . . . . . . . . . . Trap . | . . . . . . . . . . . . . . Miscellaneous . | . . . . . . . . . . . . . . Route ------- -11/Scrapyard -10/Materials (discovered 2 exits: [*Mat] / [*Min]) -10/Mines (discovered 2 exits: [*Mat] / *Exi) -10/Exiles -9/Mines -8/Materials (discovered 3 exits: *Fac x3) -7/Factory (discovered 3 exits: *Fac / *Low x2) -6/Factory (discovered 4 exits: *Fac x4) -5/Factory (discovered 4 exits: *Fac x4) -4/Factory -4/DSF -3/Research (discovered 3 exits: *Res x3) -2/Research (discovered 3 exits: *Acc x3) -1/Access (discovered 1 exit: Sur) History --------- Turn | Location | Event 3 | -11/Scrapyard | Discovered new exit (range 15) 81 | -11/Scrapyard | Entered Materials 110 | -10/Materials | Discovered new exit (range 6) 131 | -10/Materials | Discovered new exit (range 8) 220 | -10/Materials | Entered Mines 220 | -10/Mines | Discovered new exit (range 7) 239 | -10/Mines | Deemed a non-threat by the Exiles lab entrance 239 | -10/Mines | Discovered new exit (range 5) 241 | -10/Mines | Entered Exiles 254 | -10/Exiles | Met 8R-AWN 263 | -10/Exiles | Met EX-HEX 277 | -10/Exiles | Met EX-BIN 283 | -10/Exiles | Aligned with FarCom system 283 | -10/Exiles | Given EX-Vault access code 295 | -10/Exiles | Opened EX-Vault 299 | -10/Exiles | Found Trap Reconfigurator 302 | -10/Exiles | Found PSU Rigger 316 | -10/Exiles | Warned to stay clear of 0b10 Research branches 327 | -10/Exiles | Build established: Mutant 333 | -10/Exiles | Learned location of Zion (-6) 348 | -10/Exiles | Discovered new exit (range 10) 352 | -10/Exiles | Left Exiles lab with Trap Reconfigurator 352 | -10/Exiles | Entered Mines 367 | -9/Mines | Met a Derelict who couldn't figure out how to use a Trap Extractor 411 | -9/Mines | A weapon hastily lodged in a ceiling crevice suddenly fell to the ground 459 | -9/Mines | Discovered new exit (range 10) 469 | -9/Mines | Entered Materials 469 | -8/Materials | Evolved 4 slots: Utility x4 782 | -8/Materials | Discovered new exit (range 16) 802 | -8/Materials | Lost 3 parts (1u2w) 832 | -8/Materials | Repaired Imp. Terrain Scanner? 913 | -8/Materials | Discovered new exit (range 16) 962 | -8/Materials | Repaired Grenade Launcher? 1130 | -8/Materials | Discovered new exit (range 8) 1140 | -8/Materials | Build established: Scout 1318 | -8/Materials | Entered Factory 1318 | -7/Factory | Evolved 2 slots: Utility x2 1354 | -7/Factory | Identified exit to DSF 1607 | -7/Factory | Discovered new exit (range 19) 1611 | -7/Factory | Identified exit to Lower Caves 1628 | -7/Factory | Discovered new exit (range 19) 1660 | -7/Factory | Entered another Factory area 1660 | -6/Factory | Evolved 2 slots: Utility x2 1826 | -6/Factory | Identified exit to Factory 2115 | -6/Factory | Build established: Hacker-Scout 2157 | -6/Factory | Entered another Factory area 2157 | -5/Factory | Accompanied by 1 ally 2157 | -5/Factory | Evolved 2 slots: Utility x2 2488 | -5/Factory | Identified exit to Factory 2489 | -5/Factory | Fabricated Adv. Component Analysis Suite? 2509 | -5/Factory | Entered another Factory area 2509 | -4/Factory | Accompanied by 2 allies 2509 | -4/Factory | Evolved 2 slots: Utility x2 2527 | -4/Factory | Identified exit to DSF 2731 | -4/Factory | Entered DSF 2731 | -4/DSF | Accompanied by 2 allies 2754 | -4/DSF | Additional patrols routed to DSF 2818 | -4/DSF | Discovered new exit (range 14) 2837 | -4/DSF | Entered Research 2837 | -3/Research | Evolved 2 slots: Utility x2 2881 | -3/Research | Identified exit to Research 3032 | -3/Research | Found Prototype Processor 3032 | -3/Research | Identified Exp. Signal Interpreter 3103 | -3/Research | Entered another Research area 3103 | -2/Research | Evolved 2 slots: Utility x2 3132 | -2/Research | Lost 3 parts (3u) 3167 | -2/Research | Identified exit to Access 3301 | -2/Research | Entered Access 3301 | -1/Access | Evolved 2 slots: Utility x2 3313 | -1/Access | Energy Cycler disabled 3645 | -1/Access | Identified exit to Surface 3741 | -1/Access | Spotted B-99 Colossus 3805 | -1/Access | Core integrity fell below 50% 3815 | -1/Access | Core integrity fell below 20% 3815 | -1/Access | System corruption reached 10% 3819 | -1/Access | Destroyed by H-88 Terminator with KE Penetrator Last Messages --------------- Critical hit (Burn: +37). K-01 Serf collects debris. Penetrated by Slug. Slug penetrates K-01 Serf. K-01 Serf destroyed. Extracted 3 matter. Penetrated by Slug. K-01 Serf collects debris. Penetrated by Slug. Transport Network Coupler destroyed. K-01 Serf collects debris. Slug penetrates Wall. P-80 Master resets K-01 Serf, system corruption cleaned. Penetrated by Slug. Slug penetrates A-15 Conveyor. K-01 Serf collects debris. Penetrated by Slug. Slug penetrates Wall. Penetrated by Slug. Map ----- +----------------------------------------------------+ | ??????????????# ####+##########????????????? | | ??????????????# # ##????????????? | | ??????????????# # #?????????????? | | ??????????????# # "" #?????????????? | | ??????????????# # "" #?????????????? | | ??????????????# # """"" #?????????????? | | ??????????????# ^ # """"" #?????????????? | | ??????????????# / "" #?????????????? | | ??#########???# h # "" #?????????????? | | ??? ??# p# #?????????????? | | ???? ??# p # #?????????????? | | ?????? ?# p# ""Y"" #?????????????? | | ??????""""" # # """"" #?????????????? | | ????"""""""" # p ##############?????????????? | | ????"""""""" + #??????????????????????????? | | ??????""""" # #??????????????????????????? | | ????? ?# |% #??????????????????"???????? | | ?? ??# !%= #????????????????""""??????? | | ?# ???# p= #???????????????"""""??????? | | ?# """ """??# w #????????????????"""""?????? | | ?# """G"""??# h #????????????????""""??????? | | ?????###??????# #?????????????????"????????? | | ??????????????# #??????????????????????????? | | ??????????????# gh#??????????????????????????? | | ??????????????# g ###############????????????? | | ??????????????# @ t ??? | | ??????????????# A ??? | | ??????????????# ??? | | ??????????????# t ???? | | ??????????????# h ???? | | ??????????????# h ????? | | ??????????w?h h k u R????? | | ????????????########## ################????? | | ?????????????????????# #???????????????????? | | ?????????????????????# #???????????????????? | | ?????????????????????+ +???????????????????? | | ?????????????????????# #???????????????????? | | ?????????????????????# #???????????????????? | | ?????????????????????#hh #???????????????????? | | ?????????????????????# #???????????????????? | | ?????????????????????# #???????????????????? | | ?????????????????????# #???????????????????? | | ?????????????????????# +???????????????????? | | ?????????????????????# #???????????????????? | | ?????????????????????# #???????????????????? | | ?????????????????????# #???????????????????? | | ?????????????????????? ?????????????????????? | | ?????????????????????????????????????????????????? | | ?????????????????????????????????????????????????? | | ?????????????????????????????????????????????????? | +----------------------------------------------------+ Best States ------------- Heat Dissipation 52 Energy Generation 19 Energy Capacity 150 Matter Stores 300 Matter Capacity 300 Sight Range 22 Terrain Scan Range 24 Terrain Scan Density 185 Power Amplification 30 Additional Mass Support 9 Corruption Block 24 Armor Coverage 225 Resistance: KI 30 Power Shielding 90 Evasion (%) 62 Targeting Accuracy 32 Melee Accuracy 29 Offensive Hacking 54 Item Schematics ----------------- None Robot Schematics ------------------ None Fabricated ------------ Adv. Component Analysis Suite | x2 | -5/Factory | Preloaded Repaired ---------- Imp. Terrain Scanner | 13% | -8/Materials Grenade Launcher | 23% | -8/Materials Studied --------- Gauss Rifle | -6/Factory | Hacked Lgt. Ion Engine | -6/Factory | Hacked Enh. Hardcell Cannon | -2/Research | Hacked Hvy. Pick | -2/Research | Hacked Alien Tech Used ----------------- None Achievements -------------- None Challenges ------------ None Game ------ Seed PoweredMiningObliterator Manual? 0 Play Time 01:19:45 Cumulative 613.1 hours Start 2026.09.07 @ 12:00:21 End 2026.09.07 @ 13:26:49 Sessions 1 Manual Loads 0 Difficulty Rogue Special Mode None Game No. 341 Rogue 341 Adventurer 0 Explorer 0 Win Type - Total 42 Types 20/3/9/2/1/1/1/2/1/2 Lore% 97 Gallery% 93 Achievement% 88 Wizard Run 0 Options --------- Layout 1 ASCII 0 Keyboard 0 Movement Numpad Keybinds 0 Fullscreen 1 Font 24/Proggy Map View 50x35 Zoom Use 0% Tactical HUD 0 Map Filters NONE Filters NONE Steam 1 RUN: 49d9c281-fc42-4c14-8a42-99311a8b07d3